fUSD/lending_fUSD_20240403
["ID","MTS","AMOUNT","RATE_DAILY","PERIOD"]
[321379256,1712102406031,400.0,0.00049315,30]
[321379257,1712102416409,150.76,0.00048,120]
[321379258,1712102416562,150.76,0.00048,120]
[321379259,1712102416729,150.76,0.00048,120]
[321379260,1712102416867,150.76,0.00048,120]
[321379261,1712102417020,150.76,0.00048,120]
[321379262,1712102417154,150.76,0.00048,120]
[321379263,1712102417293,150.76,0.00048,120]
[321379264,1712102417433,150.76,0.00048,120]
[321379265,1712102417590,150.76,0.00048,120]
[321379266,1712102417720,150.76,0.00048,120]
[321379267,1712102417856,150.76,0.00048,120]
[321379268,1712102418194,150.76,0.00048,120]
[321379269,1712102420994,150.76,0.00048,120]
[321379270,1712102421056,150.76,0.00048,120]
[321379271,1712102421186,150.76,0.00048,120]
[321379272,1712102421329,150.76,0.00048,120]
[321379273,1712102421469,150.76,0.00048,120]
[321379274,1712102421608,150.76,0.00048,120]
[321379275,1712102421751,150.76,0.00048,120]
[321379276,1712102421901,150.76,0.00048,120]
[321379277,1712102422028,150.76,0.00048,120]
[321379278,1712102422167,150.76,0.00048,120]
[321379279,1712102422334,150.76,0.00048,120]
[321379280,1712102422490,150.76,0.00048,120]
[321379281,1712102422620,150.76,0.00048,120]
[321379282,1712102422785,150.76,0.00048,120]
[321379283,1712102422939,150.76,0.00048,120]
[321379284,1712102423100,150.76,0.00048,120]
[321379285,1712102423215,150.76,0.00048,120]
[321379286,1712102423369,150.76,0.00048,120]
[321379287,1712102423559,150.76,0.00048,120]
[321379288,1712102423649,150.76,0.00048,120]
[321379289,1712102423797,150.76,0.00048,120]
[321379290,1712102423935,150.76,0.00048,120]
[321379291,1712102424187,150.76,0.00048,120]
[321379292,1712102424240,150.76,0.00048,120]
[321379293,1712102432056,262.277742,0.00049315,120]
[321379294,1712102460759,151.0,0.00049315,120]
[321379295,1712102461531,151.0,0.00049315,120]
[321379296,1712102461632,287.671334,0.00049315,120]
[321379297,1712102477371,151.0,0.00049315,120]
[321379298,1712102477713,151.0,0.00049315,120]
[321379299,1712102478085,155.511429,0.00049315,120]
[321379300,1712102488074,1000.0,0.00049,120]
[321379301,1712102502457,209.694475,0.00049315,120]
[321379302,1712102505878,151.0,0.00049315,30]
[321379303,1712102506175,151.0,0.00049315,30]
[321379304,1712102514861,2113.48715689,0.00049299,30]
[321379305,1712102515442,1000.0,0.00049315,60]
[321379306,1712102528452,151.0,0.00049315,60]
[321379307,1712102528628,151.0,0.00049315,60]
[321379308,1712102528723,151.0,0.00049315,60]
[321379309,1712102529171,151.0,0.00049315,60]
[321379310,1712102529418,151.0,0.00049315,60]
[321379311,1712102529688,151.0,0.00049315,60]
[321379312,1712102562065,287.120874,0.00049315,120]
[321379313,1712102567030,410.07,0.00045584,120]
[321379314,1712102610223,9061.68,0.00049,120]
[321379315,1712102660934,480.0,0.000493,37]
[321379316,1712102696479,209.43363618,0.0004437,64]
[321379317,1712102697411,209.43363618,0.00045608,68]
[321379318,1712102698408,209.43363618,0.00046847,73]
[321379319,1712102699449,209.43363618,0.00048085,77]
[321379320,1712102733090,150.0,0.000493,120]
[321379321,1712102734046,150.0,0.000493,120]
[321379322,1712102734718,150.0,0.000493,120]
[321379323,1712102750356,1000.0,0.00049315,60]
[321379324,1712102827143,-1056.59434806,0.00021147,2]
[321379325,1712102827166,-407.50345457,0.00021147,2]
[321379326,1712102827187,-199.54133712,0.00021148,2]
[321379327,1712102827208,-737.87392339,0.00021149,2]
[321379328,1712102842096,-571.48607661,0.00021149,2]
[321379329,1712102842116,-155.0,0.00021506,2]
[321379330,1712102842141,-250.0,0.00022886,2]
[321379331,1712102842163,-358.18371558,0.00022933,2]
[321379332,1712102918515,-199.54133712,0.00022932,2]
[321379333,1712102918544,-641.81628442,0.00022933,2]
[321379334,1712102918576,-500.0,0.00022934,2]
[321379335,1712102970813,150.0,0.000442,120]
[321379336,1712103001786,1000.0,0.00049315,60]
[321379337,1712103018161,150.77,0.00048,120]
[321379338,1712103018629,150.77,0.00048,120]
[321379339,1712103018680,150.77,0.00048,120]
[321379340,1712103018752,150.77,0.00048,120]
[321379341,1712103018801,150.77,0.00048,120]
[321379342,1712103018965,150.77,0.00048,120]
[321379347,1712103032414,-199.54133712,0.00023054,2]
[321379348,1712103032424,-224.91866288,0.00023055,2]
[321379410,1712103037745,-615.74586266,0.00023055,2]
[321379417,1712103037799,-23059.33547446,0.00023055,2]
[321379419,1712103037809,-659.54,0.00023093,2]
[321379421,1712103037818,-1547.78,0.00023102,2]
[321379423,1712103037829,-159.4,0.00023118,2]
[321379425,1712103037839,-410.07,0.00023118,2]
[321379427,1712103037849,-1852.42,0.0002312,2]
[321379429,1712103037858,-467.68,0.0002313,2]
[321379431,1712103037867,-2630.68,0.00023255,2]
[321379433,1712103037876,-1309.36,0.00023413,2]
[321379435,1712103037887,-158.83,0.00023483,2]
[321379437,1712103037897,-158.83,0.00023636,2]
[321379439,1712103037906,-158.83,0.00023789,2]
[321379441,1712103037916,-333.80236024,0.00023797,2]
[321379443,1712103037925,-18323.93048155,0.00023798,2]
[321379445,1712103037935,-7128.51761406,0.00023798,2]
[321379447,1712103037944,-500.0,0.00023798,2]
[321379449,1712103037953,-1000.0,0.00023798,2]
[321379451,1712103037962,-411.59790798,0.00023799,2]
[321379453,1712103037972,-1394.28,0.00023859,2]
[321379456,1712103037983,-499.99,0.00023896,2]
[321379458,1712103037992,-162.27853874,0.00023896,2]
[321379460,1712103038002,-418.75650168,0.00023896,2]
[321379462,1712103038011,-1015.44925236,0.00023896,2]
[321379464,1712103038020,-217.07339303,0.00023896,2]
[321379466,1712103038029,-163.25550947,0.00023897,2]
[321379468,1712103038038,-245000.0,0.00023898,2]
[321379470,1712103038048,-100000.0,0.00023898,2]
[321379472,1712103038058,-650.71860411,0.00023899,2]
[321379474,1712103038067,-154.42575382,0.00023899,2]
[321379476,1712103038076,-9891.04365958,0.00023899,2]
[321379478,1712103038085,-930.96689614,0.00023899,2]
[321379480,1712103038097,-158.83,0.00023942,2]
[321379481,1712103038106,-1420855.68674598,0.00023998,2]
[321379483,1712103038140,-2603.10643675,0.00023998,2]
[321379577,1712103040018,-3223.10951442,0.00023998,2]
[321379578,1712103040042,-333.28442921,0.00023998,2]
[321379579,1712103040054,-493.96286274,0.00023998,2]
[321379595,1712103045785,-140809.1910591,0.00023998,2]
[321379596,1712103045794,-130718.11667425,0.00023999,2]
[321379597,1712103082746,929.52,0.00046465,120]
[321379598,1712103125986,150.0,0.0004177,49]
[321379599,1712103126704,150.0,0.0004435,55]
[321379600,1712103127031,150.0,0.0004694,60]
[321379601,1712103186988,-199.54133712,0.00023796,2]
[321379602,1712103187010,-1670316.45072767,0.00023797,2]
[321379603,1712103187033,-245000.0,0.00023798,2]
[321379604,1712103187054,-820.2226,0.00023798,2]
[321379605,1712103187075,-329.77,0.00023981,2]
[321379606,1712103187096,-601.95871336,0.00023997,2]
[321379607,1712103187117,-929.52,0.00023999,2]
[321379608,1712103187139,-8634.70634276,0.00023999,2]
[321379609,1712103187162,-158.83,0.00024095,2]
[321379610,1712103187185,-158.83,0.00024248,2]
[321379611,1712103187206,-1013.41158,0.0002439,2]
[321379612,1712103187229,-158.83,0.000244,2]
[321379613,1712103187250,-1013.41159,0.0002442,2]
[321379614,1712103187272,-165.08125155,0.0002455,2]
[321379615,1712103187293,-499.99,0.00024553,2]
[321379616,1712103187314,-158.83,0.00024553,2]
[321379617,1712103187339,-422.05453628,0.00024597,2]
[321379618,1712103187361,-1013.41158,0.00024598,2]
[321379619,1712103187626,-1013.41159,0.00024598,2]
[321379620,1712103187665,-1013.41158,0.00024598,2]
[321379621,1712103187687,-1013.41158,0.00024598,2]
[321379622,1712103187707,-2500.0,0.00024598,2]
[321379623,1712103187730,-21252.3884429,0.00024663,2]
[321379624,1712103187750,-44888.12654836,0.0002468,2]
[321379625,1712103232936,1000.0,0.00049315,60]
[321379626,1712103261721,480.0,0.000493,37]
[321379627,1712103270795,150.0,0.00048178,120]
[321379628,1712103311639,223.75166717,0.00048178,60]
[321379629,1712103317761,1323.88492721,0.00048178,90]
[321379630,1712103328356,150.0,0.000493,120]
[321379631,1712103328825,150.0,0.000493,120]
[321379632,1712103333717,399.42843147,0.00048178,90]
[321379633,1712103359397,-199.54133712,0.00023055,2]
[321379634,1712103359419,-2984.45602076,0.00023055,2]
[321379635,1712103359442,-1178.42,0.00023056,2]
[321379636,1712103359463,-200.0,0.00023759,2]
[321379637,1712103359484,-250.0,0.00023845,2]
[321379638,1712103359505,-539.8514,0.00023899,2]
[321379639,1712103359525,-271.98832337,0.00024,2]
[321379640,1712103359545,-4461.4790525,0.00024549,2]
[321379641,1712103359566,-165.08125156,0.0002455,2]
[321379642,1712103359587,-35121.69823449,0.00024614,2]
[321379643,1712103359608,-579.76,0.00024615,2]
[321379644,1712103359629,-579.76,0.00024622,2]
[321379645,1712103359650,-579.76,0.00024628,2]
[321379646,1712103359671,-579.76,0.00024635,2]
[321379647,1712103359694,-579.76,0.00024641,2]
[321379648,1712103359716,-579.76,0.00024648,2]
[321379649,1712103359737,-579.76,0.00024654,2]
[321379650,1712103359759,-579.76,0.00024661,2]
[321379651,1712103359779,-579.76,0.00024667,2]
[321379652,1712103359800,-579.76,0.00024673,2]
[321379653,1712103359820,-579.76,0.0002468,2]
[321379654,1712103359841,-1150.02401474,0.0002468,2]
[321379655,1712103359862,-10023.9184986,0.0002468,2]
[321379656,1712103359885,-3721.8289415,0.0002468,2]
[321379657,1712103359905,-1519.7034526,0.0002468,2]
[321379658,1712103359927,-579.76,0.00024686,2]
[321379659,1712103359947,-579.76,0.00024693,2]
[321379660,1712103359968,-3752.8292069,0.00024697,2]
[321379661,1712103359988,-579.76,0.00024699,2]
[321379662,1712103360009,-579.76,0.00024706,2]
[321379663,1712103360030,-158.83,0.00024706,2]
[321379664,1712103360052,-359.4,0.00024711,2]
[321379665,1712103360072,-579.76,0.00024712,2]
[321379666,1712103360347,-579.76,0.00024719,2]
[321379667,1712103360368,-579.76,0.00024725,2]
[321379668,1712103360391,-579.76,0.00024732,2]
[321379669,1712103360411,-579.76,0.00024738,2]
[321379670,1712103360431,-155.0,0.00024796,2]
[321379671,1712103360451,-345.37939812,0.00024796,2]
[321379672,1712103360470,-1614.55918904,0.00024797,2]
[321379673,1712103360490,-1849.80022698,0.00024797,2]
[321379674,1712103360510,-150.01,0.00024797,2]
[321379675,1712103360530,-1466.89941507,0.00024899,2]
[321379676,1712103360549,-1466.89941507,0.000249,2]
[321379677,1712103360569,-6415.6658526,0.000249,2]
[321379678,1712103360589,-384.15804742,0.000249,2]
[321379679,1712103360609,-16491.53743344,0.000249,2]
[321379680,1712103360630,-201.34532869,0.00024997,2]
[321379681,1712103360650,-1419.20613469,0.00024997,2]
[321379682,1712103360673,-549.90625593,0.00024997,2]
[321379683,1712103360694,-695.40382292,0.00024997,2]
[321379684,1712103360714,-810.45652387,0.00024997,2]
[321379685,1712103360734,-529.0753707,0.00024997,2]
[321379686,1712103360754,-156.96796697,0.00024997,2]
[321379687,1712103360773,-447.6930222,0.00024998,2]
[321379688,1712103360793,-155.80412866,0.00024998,2]
[321379689,1712103360815,-23915.58552774,0.00024999,2]
[321379690,1712103360835,-2599.52375458,0.00025,2]
[321379691,1712103360854,-187.75884867,0.00025,2]
[321379692,1712103360874,-286.38407441,0.00025,2]
[321379693,1712103360896,-151356.52814027,0.00025,2]
[321379694,1712103360915,-627722.87825964,0.00025,2]
[321379695,1712103360935,-264.92,0.00025,2]
[321379696,1712103360955,-175.26377458,0.00025,2]
[321379697,1712103360976,-13006.53915786,0.000251,2]
[321379698,1712103360995,-3159.24555559,0.000251,2]
[321379699,1712103361015,-23900.0,0.00025217,2]
[321379700,1712103361035,-156.74,0.00025312,2]
[321379701,1712103361057,-1178.42,0.0002532,2]
[321379702,1712103361077,-159.4,0.0002543,2]
[321379703,1712103361097,-150.02,0.00025455,2]
[321379704,1712103361118,-1000.0,0.000258,2]
[321379705,1712103361142,-1547.78,0.00025841,2]
[321379706,1712103361162,-4224.55657546,0.00026,2]
[321379707,1712103361181,-375.0,0.000261,2]
[321379708,1712103361201,-800.0,0.00026164,2]
[321379709,1712103361220,-2562.0,0.000262,2]
[321379710,1712103361240,-37022.83906469,0.000263,2]
[321379711,1712103399643,-2826.15528818,0.00024899,2]
[321379712,1712103399667,-240368.14471182,0.000249,2]
[321379713,1712103451560,150.0,0.00044592,120]
[321379714,1712103486512,1000.0,0.00049315,60]
[321379715,1712103564199,273.38,0.00048748,120]
[321379716,1712103570798,150.0,0.00048552,120]
[321379717,1712103615625,150.78,0.00048,120]
[321379718,1712103701706,1000.0,0.00049315,60]
[321379719,1712103725021,6433.76138407,0.0003,15]
[321379720,1712103743800,1005.0,0.000487,117]
[321379721,1712103855529,15000.0,0.00049315,30]
[321379722,1712103861693,480.0,0.000493,37]
[321379723,1712103870874,150.0,0.00047769,120]
[321379724,1712103888675,7465.98637914,0.00026,3]
[321379725,1712103929916,150.0,0.000493,120]
[321379726,1712103930468,150.0,0.000493,120]
[321379727,1712103931338,150.0,0.00043681,120]
[321379728,1712103944820,1000.0,0.00049315,60]
[321379729,1712103946131,5792.42238206,0.00024,3]
[321379730,1712103973035,154.42476749,0.0004898,40]
[321379731,1712104027533,-199.54133712,0.00023803,2]
[321379732,1712104027556,-224.14883912,0.00023804,2]
[321379733,1712104029165,-836.42116088,0.00023804,2]
[321379734,1712104029187,-947.5263924,0.00024,2]
[321379735,1712104041082,4231.0,0.0004164,120]
[321379736,1712104056282,11147.74039852,0.0004164,30]
[321379737,1712104071709,845.03,0.0004784,120]
[321379738,1712104085313,327.01472641,0.00049,120]
[321379739,1712104090775,151.040309,0.00049315,90]
[321379740,1712104107256,202.040309,0.00049315,91]
[321379741,1712104107815,4000.0,0.00048,120]
[321379742,1712104123584,550.0,0.00025,3]
[321379746,1712104156386,14647.7,0.00049315,45]
[321379747,1712104177187,1000.0,0.00049315,60]
[321379748,1712104188719,10026.1465327,0.00049315,30]
[321379750,1712104218838,150.78,0.00048,120]
[321379757,1712104231982,-735.1774,0.00023602,2]
[321379758,1712104231992,-400.0,0.00023701,2]
[321379759,1712104232002,-199.54133712,0.00023702,2]
[321379760,1712104232012,-2110.09298313,0.00023703,2]
[321379761,1712104232139,-285.01083495,0.00023703,2]
[321379762,1712104232156,-421.02436441,0.00023703,2]
[321379763,1712104232168,-421.97101751,0.00023703,2]
[321379764,1712104232177,-282.8206,0.00023704,2]
[321379765,1712104232186,-167.80951138,0.000248,2]
[321379766,1712104232196,-150.0,0.00024899,2]
[321379767,1712104232205,-174.43179334,0.000249,2]
[321379768,1712104232216,-1299.4208445,0.000249,2]
[321379769,1712104232232,-250.0,0.000249,2]
[321379770,1712104232286,-1173.64218522,0.000249,2]
[321379789,1712104238029,-293.184,0.000249,2]
[321379874,1712104242845,-406.24944498,0.000249,2]
[321379877,1712104243827,-966.10151373,0.000249,2]
[321379878,1712104243890,-68.82550641,0.000249,2]
[321379879,1712104243899,-260.32549375,0.000249,2]
[321379880,1712104243911,-615.85082315,0.000249,2]
[321379881,1712104243923,-75.8293831,0.000249,2]
[321379882,1712104243933,-155.0,0.00025,2]
[321379883,1712104243943,-226.3906169,0.00025,2]
[321379884,1712104243962,-280.404749,0.00025,2]
[321379885,1712104243983,-2092.72838868,0.00025,2]
[321379886,1712104243993,-150.0,0.00025146,2]
[321379887,1712104244003,-845.03,0.00025374,2]
[321379888,1712104244012,-515.25,0.00025391,2]
[321379889,1712104244023,-499.99,0.00025391,2]
[321379890,1712104244034,-164.88,0.0002551,2]
[321379891,1712104244044,-247.25,0.00025556,2]
[321379892,1712104244057,-229.03326113,0.00025667,2]
[321379893,1712104244069,-5968.5656081,0.00025667,2]
[321379894,1712104244082,-2429.23065875,0.00025667,2]
[321379895,1712104244103,-15273.17047202,0.00025667,2]
[321379896,1712104244113,-840.0,0.00025785,2]
[321379897,1712104244123,-2305.0,0.000258,2]
[321379898,1712104244133,-200.0,0.00025933,2]
[321379899,1712104244143,-159.4,0.00025969,2]
[321379900,1712104244153,-165.08125156,0.00026036,2]
[321379901,1712104244162,-1060.57,0.00026068,2]
[321379902,1712104244173,-167.0,0.00026174,2]
[321379903,1712104244183,-255.0844,0.0002619,2]
[321379904,1712104244193,-433.0026,0.000262,2]
[321379905,1712104244203,-727.2416,0.0002621,2]
[321379906,1712104244212,-273.38,0.00026282,2]
[321379907,1712104244222,-104851.3398343,0.0002629,2]
[321379908,1712104244231,-6258.4325952,0.0002629,2]
[321379909,1712104244241,-48200.3309513,0.00026291,2]
[321379910,1712104244249,-22829.3550482,0.00026291,2]
[321379911,1712104244259,-2406.595438,0.00026292,2]
[321379912,1712104244269,-2494.595384,0.00026292,2]
[321379913,1712104244278,-321.2053553,0.00026292,2]
[321379914,1712104244288,-150.01,0.00026299,2]
[321379915,1712104244298,-1772.72521753,0.00026299,2]
[321379916,1712104244310,-33421.39554242,0.000263,2]
[321379917,1712104244320,-172.9165,0.000263,2]
[321379918,1712104244330,-165.81336204,0.00026309,2]
[321379919,1712104244339,-157.23967019,0.00026309,2]
[321379920,1712104244348,-975.024,0.0002631,2]
[321379921,1712104244358,-406.24944498,0.00026363,2]
[321379922,1712104244367,-24374.98232799,0.00026381,2]
[321379923,1712104244377,-25637.75119109,0.000264,2]
[321379924,1712104244386,-1000.0,0.000264,2]
[321379925,1712104244395,-200.0,0.00026729,2]
[321379926,1712104244405,-569.37877864,0.000269,3]
[321379927,1712104244414,-188.45187509,0.00026998,2]
[321379928,1712104244424,-17289.95550057,0.00026999,2]
[321379929,1712104244433,-1684.85240864,0.00026999,2]
[321379930,1712104244443,-10941.03278784,0.00027,2]
[321379931,1712104244452,-11850.85737957,0.00027,2]
[321379932,1712104244488,-2706.66538288,0.00027,2]
[321379933,1712104244500,-1263.03348558,0.00027,2]
[321379934,1712104244515,-3029.02587186,0.00027,2]
[321379942,1712104246029,-340.6,0.00025343,2]
[321379943,1712104246040,-400.0,0.00026289,2]
[321379944,1712104246050,-1853.35773836,0.00026299,2]
[321379945,1712104246066,-24663.32351164,0.00027,2]
[321379946,1712104246078,-300.95161461,0.00027,2]
[321379947,1712104246202,-10958.27664466,0.00027,2]
[321379948,1712104246226,-298.88341722,0.00027,2]
[321379949,1712104246387,-199.54133712,0.00026289,2]
[321379965,1712104246596,-2974.63349018,0.00027,2]
[321380064,1712104265128,2580.0,0.0004164,120]
[321380065,1712104300910,2000.0,0.00049315,120]
[321380066,1712104326531,150.0,0.0004177,49]
[321380067,1712104326971,233.0,0.0004435,54]
[321380069,1712104395858,-172.17,0.00026109,10]
[321380070,1712104407535,151.0,0.00049315,120]
[321380071,1712104408478,243.797451,0.00049315,120]
[321380072,1712104415984,-8215.03,0.00026541,4]
[321380073,1712104418360,151.0,0.00049315,120]
[321380074,1712104427316,1000.0,0.00049315,60]
[321380075,1712104513928,713.0,0.00049315,30]
[321380076,1712104530562,150.0,0.000493,120]
[321380077,1712104532132,150.0,0.000493,120]
[321380078,1712104551847,182.25,0.00047764,120]
[321380079,1712104565097,237.47235301,0.0004163,120]
[321380080,1712104600488,20000.0,0.00049315,30]
[321380081,1712104623311,154.42476749,0.00047641,35]
[321380082,1712104631400,10000.0,0.00049315,30]
[321380083,1712104655016,13743.04075175,0.00024,3]
[321380084,1712104698411,1000.0,0.00049315,60]
[321380085,1712104705342,151.0,0.00048,120]
[321380086,1712104705928,151.0,0.00049068,120]
[321380087,1712104762069,747.70725432,0.00021596,2]
[321380088,1712104777764,931.34455404,0.00049068,60]
[321380089,1712104779505,172.17,0.00024884,4]
[321380090,1712104819240,250.0,0.0004912,30]
[321380091,1712104838415,855.381881,0.00022793,2]
[321380092,1712104858104,20000.0,0.00041626,30]
[321380093,1712104864464,950.58992929,0.00021653,2]
[321380094,1712104865445,12566.0,0.000208,2]
[321380095,1712104867383,155.0,0.00022793,2]
[321380096,1712104867540,20000.0,0.00041626,90]
[321380097,1712104871304,364.48555309,0.00022793,2]
[321380098,1712104871540,939.83288273,0.00022793,2]
[321380099,1712104873187,1049.43,0.00022206,2]
[321380100,1712104878100,20000.0,0.00041626,60]
[321380101,1712104880471,160.66796497,0.00021653,2]
[321380102,1712104881391,167.9279156,0.00022793,2]
[321380103,1712104884316,2456.5758393,0.00022793,2]
[321380104,1712104886542,20100.79242508,0.00022793,2]
[321380105,1712104887532,713.04504789,0.00022793,2]
[321380106,1712104889548,20000.0,0.00041626,90]
[321380107,1712104891177,364.48555309,0.00022793,2]
[321380108,1712104897902,20000.0,0.00041626,120]
[321380109,1712104900693,2072.52539712,0.00022793,2]
[321380110,1712104901289,1000.0,0.00049315,60]
[321380111,1712104902498,20100.79242508,0.00022793,2]
[321380112,1712104907482,20000.0,0.00041626,120]
[321380113,1712104915480,20000.0,0.00041626,120]
[321380114,1712104922498,20100.79242508,0.00022793,2]
[321380115,1712104940506,14634.3898986,0.00022793,2]
[321380116,1712104963012,25999.0,0.00041626,30]
[321380117,1712104968699,568.91169075,0.00023896,7]
[321380118,1712104975428,860.36301045,0.00022793,4]
[321380119,1712104977579,158.21998622,0.00022983,2]
[321380120,1712104986639,194.64152511,0.00023409,7]
[321380121,1712105050949,848.17,0.00045143,120]
[321380122,1712105127954,150.0,0.000493,120]
[321380123,1712105128736,150.0,0.000493,120]
[321380124,1712105155358,1000.0,0.00049315,60]
[321380125,1712105339382,-151.0,0.00029899,7]
[321380126,1712105369174,-173.53803921,0.0002169,2]
[321380127,1712105369195,-31.17258087,0.0002169,2]
[321380128,1712105373119,-155.0,0.00021689,2]
[321380129,1712105373144,-630.08655181,0.0002169,2]
[321380130,1712105373164,-156.62298793,0.00021691,2]
[321380131,1712105373189,-1209.297598,0.00021692,2]
[321380132,1712105373220,-199.54133712,0.00021693,2]
[321380133,1712105373246,-10782.47736701,0.00021694,2]
[321380134,1712105373272,-669.53140099,0.00021793,2]
[321380135,1712105373298,-1220.62658197,0.00021793,2]
[321380136,1712105373321,-4306.72307896,0.00021793,2]
[321380137,1712105373348,-615.47780936,0.00021794,2]
[321380138,1712105373372,-3854.39454608,0.00021794,2]
[321380139,1712105373405,-4186.20750815,0.00021794,2]
[321380140,1712105373427,-5956.10873925,0.00021795,2]
[321380141,1712105373449,-35121.69823449,0.00021797,2]
[321380142,1712105373470,-538.68,0.00021799,2]
[321380143,1712105373491,-158.74,0.00021928,2]
[321380144,1712105373512,-645.1091209,0.00022,2]
[321380145,1712105373533,-150.0,0.00022038,2]
[321380146,1712105373555,-499.99,0.00022038,2]
[321380147,1712105373577,-155.0,0.0002204,2]
[321380148,1712105373599,-500.0,0.00022041,2]
[321380149,1712105373622,-500.0,0.00022041,2]
[321380150,1712105373646,-500.0,0.00022041,2]
[321380151,1712105373669,-500.0,0.00022041,2]
[321380152,1712105373689,-336.27904368,0.00022041,2]
[321380153,1712105373711,-500.0,0.00022041,2]
[321380154,1712105373731,-500.0,0.00022041,2]
[321380155,1712105373753,-499.99999999,0.00022041,2]
[321380156,1712105373774,-787.03,0.00022044,2]
[321380157,1712105373795,-328.0,0.00022046,2]
[321380158,1712105373816,-3927.15,0.00022119,2]
[321380159,1712105373836,-266.69,0.00022119,2]
[321380160,1712105373858,-150.99,0.00022119,2]
[321380161,1712105373878,-150.0,0.00022147,2]
[321380162,1712105373905,-735.22017695,0.00022147,2]
[321380163,1712105373926,-9428.01242247,0.00022185,2]
[321380164,1712105385704,-405.05563396,0.0003,4]
[321380165,1712105385724,-155.0,0.0003,4]
[321380166,1712105385743,-19283.55227415,0.0003,4]
[321380167,1712105385764,-606.35217515,0.0003,4]
[321380168,1712105399938,19283.55227415,0.0003,4]
[321380169,1712105401913,606.35217515,0.0003,4]
[321380170,1712105402477,578.65090565,0.0003,4]
[321380171,1712105415621,19283.55227415,0.0003,4]
[321380172,1712105416790,405.05563396,0.0003,4]
[321380173,1712105419844,606.35217515,0.0003,4]
[321380174,1712105422766,1000.0,0.00049315,60]
[321380195,1712105433624,19283.55227415,0.0003,4]
[321380203,1712105433767,-1197.56268059,0.00022185,2]
[321380204,1712105433819,-381.87327476,0.00022185,2]
[321380205,1712105433831,-3282.07364496,0.00022185,2]
[321380206,1712105433843,-4818.10797722,0.00022185,2]
[321380207,1712105433852,-435.33,0.00022269,2]
[321380208,1712105433862,-200.0,0.00022276,2]
[321380209,1712105433871,-13027.57,0.00022332,2]
[321380210,1712105433880,-753.67295405,0.00022353,2]
[321380211,1712105434003,-406.05508026,0.00022353,2]
[321380212,1712105434017,-3108.19196569,0.00022353,2]
[321380213,1712105434027,-645.1091209,0.00022419,2]
[321380214,1712105434036,-155.0,0.00022432,2]
[321380215,1712105434046,-187.56369189,0.00022432,2]
[321380216,1712105434056,-627.84295914,0.00022433,2]
[321380217,1712105434066,-642.62784697,0.00022433,2]
[321380218,1712105434075,-4186.20750815,0.00022433,2]
[321380219,1712105434085,-426.25322708,0.00022433,2]
[321380220,1712105434094,-3021.20368018,0.00022434,2]
[321380221,1712105434139,-3239.94999999,0.00022434,2]
[321380222,1712105434184,-397.92290039,0.00022434,2]
[321380223,1712105434200,-17240.92341944,0.00022434,2]
[321380224,1712105434209,-150.0,0.00022548,2]
[321380225,1712105434219,-231.66712819,0.00022565,2]
[321380227,1712105434228,-250.0,0.00022572,2]
[321380229,1712105434238,-151.56,0.00022572,2]
[321380231,1712105434248,-848.17,0.00022677,2]
[321380233,1712105434257,-246.74461914,0.00022679,2]